[Event "Swietokrzyskie IM Chess-ch 2022"]
[Site "Zagnansk"]
[Date "2022.05.04"]
[Round "6.4"]
[White "Kotyk, Michael"]
[Black "Manik, GM Mikulas"]
[Result "0-1"]
[ECO "E69"]
[WhiteElo "2170"]
[BlackElo "2367"]
[Annotator "TA"]
[PlyCount "38"]
[EventDate "2022.04.29"]
[EventCountry "POL"]
[SourceTitle "playchess.com"]
[Source "ChessBase"]
[SourceQuality "1"]
[TimeControl "40/5400+30:1800+30"]

{[%evp 23,38,0,0,0,54,17,21,0,0,22,8,0,36,-729,-718,-679,-636]} 1. d4 {[%emt 0:00:03]} Nf6 {[%emt 0:00:02]} 2. c4 {[%emt 0:00:07]} g6 {[%emt 0:00:03]} 3. g3 {[%emt 0:00:04]} Bg7 {[%emt 0:00:08]} 4. Bg2 {[%emt 0:00:05]} O-O {[%emt 0:00:08]} 5. Nc3 {[%emt 0:00:06]} c6 {[%emt 0:02:45]} 6. e4 {[%emt 0:02:56]} d6 {[%emt 0:00:23]} 7. Nf3 {[%emt 0:00:16]} e5 {[%emt 0:02:58]} 8. h3 {[%emt 0:00:28]} Nbd7 {[%emt 0:01:33]} 9. O-O {[%emt 0:00:24]} Re8 {[%emt 0:02:07]} 10. Re1 {[%emt 0:01:43]} exd4 {[%emt 0:03:47]} 11. Nxd4 {[%emt 0:00:07]} Qb6 {[%emt 0:00:08]} 12. Nb3 {[%emt 0:01:39]} Ne5 {[%emt 0:01:29]} 13. Be3 {[%emt 0:00:09] E69: King's Indian: Fianchetto: 6...Nbd7 7 0-0 e5 8 e4 c6 9 h3.} Qc7 {[%emt 0:02:08]} (13... c5 $11) 14. c5 {[%emt 0:19:23]} dxc5 {[%emt 0:02:03]} 15. Bxc5 {[%emt 0:04:43] The position is equal.} (15. f4 $5 {[%cal Rf4e5]}) 15... Rd8 {[%emt 0:01:15] [#]} 16. Bd4 $146 {[%emt 0:03:08] Black must now prevent Bxe5.} ({Predecessor:} 16. Qc2 Nd3 17. Red1 Nxc5 18. Nxc5 Rxd1+ 19. Rxd1 Qe7 20. Nd3 Be6 21. Nf4 Re8 22. Nxe6 Qxe6 {½-½ (68) Pniaczek,M (2110)-Cech,D (2128) Slovakia 2019}) 16... Be6 {[%emt 0:01:21]} 17. f4 {[%emt 0:01:53]} Bxb3 {[%emt 0:05:45]} 18. Bxe5 $4 {[%emt 0:01:22][%mdl 8192]} Qb6+ $19 {[%emt 0:00:18]} ({Less strong is} 18... Bxd1 19. Bxc7 Rd7 {[#]} 20. e5 $1 $16 (20. Raxd1 Rxc7 21. e5 Nd7 $16)) 19. Bd4 {[%emt 0:00:04]} Rxd4 {[%emt 0:00:04] Weighted Error Value: White=1.21/Black=0.18 (very precise)} ({Inferior is} 19... Bxd1 20. Bxb6 axb6 21. Raxd1 $15) 0-1

[Event "Swietokrzyskie IM Chess-ch 2022"]
[Site "Zagnansk"]
[Date "2022.05.04"]
[Round "6.5"]
[White "Chylewski, FM Patryk"]
[Black "Malek, Jan"]
[Result "0-1"]
[ECO "D04"]
[WhiteElo "2281"]
[BlackElo "2316"]
[Annotator "TA"]
[PlyCount "74"]
[EventDate "2022.04.29"]
[EventCountry "POL"]
[SourceTitle "playchess.com"]
[Source "ChessBase"]
[SourceQuality "1"]
[TimeControl "40/5400+30:1800+30"]

{[%evp 9,74,-35,-20,-31,17,-35,-29,-19,-16,-32,-21,-29,-37,-23,0,-29,0,0,0,-4,0,0,-1,-215,-38,-190,-214,-206,-204,-189,-206,-256,-214,-249,-247,-292,-266,-259,-199,-240,-196,-199,-200,-193,-195,-194,-209,-235,-208,-299,-292,-364,-356,-429,-387,-372,-398,-554,-528,-944,-544,-29995,-29996,-29996,-29996,-29997,-29993]} 1. d4 {[%emt 0:00:03]} Nf6 {[%emt 0:00:08]} 2. Nf3 {[%emt 0:00:09]} d5 {[%emt 0:00:06]} 3. e3 {[%emt 0:00:09]} c5 {[%emt 0:00:18]} 4. Bd3 {[%emt 0:00:39]} Nc6 {[%emt 0:00:22]} 5. b3 {[%emt 0:09:07]} cxd4 {[%emt 0:00:10]} 6. exd4 {[%emt 0:00:05] D04: Colle System.} Qc7 {[%emt 0:01:32]} (6... Bg4 $15) 7. a3 {[%emt 0:03:51]} (7. h3 $11) 7... Bg4 $15 {[%emt 0:06:08]} 8. Bb2 {[%emt 0:01:33] Black has an edge.} e6 {[%emt 0:00:56]} 9. Nbd2 {[%emt 0:00:56]} Bd6 {[%emt 0:01:23]} 10. h3 {[%emt 0:01:54]} Bh5 {[%emt 0:00:06]} 11. O-O {[%emt 0:07:14]} g5 {[%emt 0:17:05] [#]} 12. Be2 $146 {[%emt 0:04:55]} ({Predecessor:} 12. Re1 g4 13. hxg4 Nxg4 14. c4 Bh2+ 15. Kf1 Bg3 16. cxd5 Bxf2 17. dxc6 Qg3 18. cxb7 {1-0 (47) Nikoladze,S (2132)-Ozates,T (2217) Chess.com INT 2020}) 12... Bxf3 {[%emt 0:05:03]} 13. Nxf3 {[%emt 0:05:09]} g4 {[%emt 0:06:50]} 14. hxg4 {[%emt 0:00:28]} Nxg4 {[%emt 0:00:15]} 15. c4 {[%emt 0:09:19]} O-O-O {[%emt 0:08:19]} 16. Ng5 $2 {[%emt 0:12:36] Black keeps a firm grip on the game.} (16. Rc1 $11) 16... Bh2+ $19 {[%emt 0:02:44][%cal Bd6h2,Bh2g1,Bg1f2,Bf2h4,Bh4f6][%mdl 32]} (16... Bxa3 17. Bxg4 Bxb2 18. cxd5 Bxa1 19. Qxa1 Rxd5 20. Nxe6 $15) 17. Kh1 {[%emt 0:00:05] [#]} Bg1 $1 {[%emt 0:01:13][%csl Gg1,Gg4][%cal Rc7h2][%mdl 512]} 18. f4 {[%emt 0:00:40]} Nf2+ {[%emt 0:00:07]} 19. Rxf2 {[%emt 0:00:05]} Bxf2 {[%emt 0:00:06]} 20. Nh3 {[%emt 0:03:22]} Bh4 {[%emt 0:03:54]} 21. cxd5 {[%emt 0:00:49]} exd5 {[%emt 0:03:02]} ({And not} 21... Rxd5 22. Bf3 Qd7 23. Bxd5 Qxd5 24. Qf3 $17) 22. Bb5 {[%emt 0:02:40]} Bf6 {[%emt 0:00:36]} 23. Rc1 {[%emt 0:02:12]} Rd6 {[%emt 0:01:42]} 24. a4 {[%emt 0:07:16]} a6 {[%emt 0:02:11][%cal Ba7a6,Ba6a5,Ba5b4][%mdl 32]} 25. Bd3 {[%emt 0:05:04] [#]} Kb8 $1 {[%emt 0:03:01]} 26. b4 {[%emt 0:04:18][%cal Bb3b4,Bb4b5][%mdl 32]} Qd7 {[%emt 0:01:22]} 27. b5 {[%emt 0:01:03] [#]} Nb4 {[%emt 0:00:20]} ({Inferior is} 27... Nxd4 28. bxa6 Rc8 29. Rb1 $17) 28. Ba3 {[%emt 0:06:56]} a5 {[%emt 0:00:11]} 29. Be2 {[%emt 0:05:36]} (29. Qd2 {was called for.}) 29... Rg8 {[%emt 0:00:59][%cal Bh8g8,Bg8g3,Bg3c3][%mdl 32] White must now prevent ...Rg3.} 30. Bxb4 {[%emt 0:01:36]} axb4 {[%emt 0:00:38]} 31. a5 {[%emt 0:00:26]} Rg3 {[%emt 0:06:00] And now ...Rxh3+ would win.} 32. Kh2 {[%emt 0:01:12]} Rc3 {[%emt 0:00:21]} 33. Rb1 {[%emt 0:00:17]} Bh4 {[%emt 0:01:51]} 34. Rxb4 {[%emt 0:03:48]} Rg6 {[%emt 0:00:09][%cal Og6g2] ( -> ...Rxg2+!)} 35. Rb3 {[%emt 0:00:47] [#]} Rxg2+ $1 {[%emt 0:00:11][%mdl 512] Black mates.} 36. Kxg2 {[%emt 0:00:05]} Qxh3+ $1 {[%emt 0:00:08]} 37. Kg1 {[%emt 0:00:10]} Rxb3 {[%emt 0:00:49] Weighted Error Value: White=0.75/Black=0.29 (precise)} 0-1

[Event "Swietokrzyskie IM Chess-ch 2022"]
[Site "Zagnansk"]
[Date "2022.05.04"]
[Round "7.1"]
[White "Malek, Jan"]
[Black "Sieciechowicz, IM Marcin"]
[Result "0-1"]
[ECO "C11"]
[WhiteElo "2316"]
[BlackElo "2388"]
[Annotator "TA"]
[PlyCount "104"]
[EventDate "2022.04.29"]
[EventCountry "POL"]
[SourceTitle "playchess.com"]
[Source "ChessBase"]
[SourceQuality "1"]
[TimeControl "40/5400+30:1800+30"]

{[%evp 16,104,14,3,28,20,31,36,44,34,49,39,43,33,36,35,38,29,12,0,21,21,21,22,22,22,40,22,31,28,34,-54,-55,-54,-37,-42,-45,-50,-44,-46,-29,-70,-75,-77,-64,-81,-69,-63,-53,-66,-62,-76,-73,-61,-61,-89,-87,-102,-108,-106,-91,-160,-159,-161,-167,-201,-204,-231,-193,-254,-197,-225,-297,-441,-430,-408,-407,-487,-324,-674,-610,-1666,-2136,-1881,-1890,-29959,-29961,-29964,-29965,-29984,-29985]} 1. e4 {[%emt 0:00:09]} e6 {[%emt 0:00:02]} 2. d4 {[%emt 0:00:06]} d5 {[%emt 0:00:05]} 3. Nc3 {[%emt 0:00:05]} Nf6 {[%emt 0:00:14]} 4. e5 {[%emt 0:00:07]} Nfd7 {[%emt 0:00:03]} 5. f4 {[%emt 0:00:06]} c5 {[%emt 0:00:05]} 6. Nf3 {[%emt 0:00:04]} Nc6 {[%emt 0:00:03]} 7. Be3 {[%emt 0:00:07]} Be7 {[%emt 0:00:51]} 8. Qd2 {[%emt 0:00:07]} O-O {[%emt 0:00:12]} 9. dxc5 {[%emt 0:00:05]} Bxc5 {[%emt 0:00:12] C11: French: Classical System: 4 e5 and 4 Bg5 dxe4.} 10. O-O-O {[%emt 0:00:09]} Qa5 {[%emt 0:00:37]} 11. a3 {[%emt 0:00:07]} a6 {White is slightly better. was the old line (11...Be7).} 12. Bxc5 {[%emt 0:02:11]} Nxc5 {[%emt 0:02:03]} 13. Qf2 {[%emt 0:00:27] [#]} Bd7 $146 {[%emt 0:07:20]} ({Predecessor:} 13... f6 14. exf6 Rxf6 15. g3 Bd7 16. Bg2 Na4 17. Nxa4 Qxa4 18. Qc5 Rc8 19. b3 Qe4 {1-0 (43) Ashton,A (2323)-Williams,S (2468) Torquay 2019}) 14. h4 {[%emt 0:06:06]} Na4 {[%emt 0:05:59]} 15. Nxa4 {[%emt 0:04:49]} Qxa4 {[%emt 0:01:30]} 16. Nd4 {[%emt 0:20:06]} Rac8 {[%emt 0:06:39] aiming for ...Nxd4.} 17. c3 {[%emt 0:00:59]} b5 {[%emt 0:09:25]} 18. Nxc6 {[%emt 0:01:19]} Rxc6 {[%emt 0:02:03]} 19. Rd4 {[%emt 0:00:57]} Qb3 {[%emt 0:12:00]} 20. Qc2 {[%emt 0:06:18]} Qxc2+ {[%emt 0:02:24]} (20... Qa2 {looks sharper.} 21. Kd2 Rb8 22. Bd3 h5) 21. Kxc2 {[%emt 0:00:02]} f6 {[%emt 0:12:33]} 22. exf6 {[%emt 0:00:09]} gxf6 {[%emt 0:00:39]} 23. f5 {[%emt 0:00:49]} (23. g4 $14) 23... e5 $15 {[%emt 0:01:11]} 24. Rxd5 {[%emt 0:00:10]} Bxf5+ {[%emt 0:00:03]} 25. Kc1 {[%emt 0:02:05]} ({Don't go for} 25. Bd3 $2 Be6 26. Be4 f5 $19) 25... Be6 {[%emt 0:05:34]} 26. Rd2 {[%emt 0:02:11]} Kf7 {[%emt 0:03:41]} 27. Be2 {[%emt 0:03:06]} f5 {[%emt 0:01:05]} 28. Rf1 {[%emt 0:04:42]} Ke7 {[%emt 0:00:51]} 29. Rd3 {[%emt 0:02:17]} Rcc8 {[%emt 0:13:10]} 30. Rg3 {[%emt 0:10:12]} Rg8 {[%emt 0:01:28] Inhibits Rg7+.} 31. Re3 {[%emt 0:00:03]} Rxg2 {[%emt 0:00:44]} 32. Rxe5 {[%emt 0:00:53]} Kf6 $1 $36 {[%emt 0:00:56][%mdl 2048] Black has some pressure.} 33. Bf3 {[%emt 0:01:30]} Kxe5 {[%emt 0:04:18] Black is more active.} 34. Bxg2 $17 {[%emt 0:00:13][%mdl 4096] Endgame KRB-KRB} Rc4 {[%emt 0:01:41]} 35. h5 {[%emt 0:01:25] Black keeps a firm grip on the game.} Rh4 {[%emt 0:00:59]} 36. Re1+ {[%emt 0:02:02]} Kf6 {[%emt 0:00:29]} 37. Bf3 {[%emt 0:00:48]} Bf7 {[%emt 0:02:28]} 38. Rd1 {[%emt 0:00:24]} (38. h6 $142) 38... Bxh5 {[%emt 0:01:33]} 39. Rd6+ {[%emt 0:00:11] [#]} Kg5 $1 {[%emt 0:00:11]} 40. Bb7 {[%emt 0:00:00]} a5 {[%emt 0:00:00]} 41. b4 {[%emt 0:18:02]} axb4 {[%emt 0:17:35]} 42. axb4 {[%emt 0:00:01]} (42. cxb4 $142 Be2 43. Kd2) 42... Rh3 {[%emt 0:04:24]} 43. Kd2 {[%emt 0:00:58] [#]} Rh2+ $1 {[%emt 0:00:44]} 44. Kd3 {[%emt 0:02:50]} (44. Ke1 $142) 44... Be2+ $19 {[%emt 0:03:25]} 45. Kd4 {[%emt 0:00:08]} Bc4 {[%emt 0:00:55]} 46. Kc5 {[%emt 0:00:01]} Rh3 {[%emt 0:01:13]} 47. Bc6 $2 {[%emt 0:00:13]} (47. Bd5 Bxd5 48. Rxd5) 47... Rxc3 {[%emt 0:00:34]} 48. Bxb5 {[%emt 0:00:02]} Bxb5+ {[%emt 0:00:16]} 49. Kxb5 {[%emt 0:00:02]} f4 {[%emt 0:01:17][%cal Bf5f4,Bf4f3,Bf3f2][%mdl 32] Hoping for ...f3.} 50. Ka6 {[%emt 0:00:56]} f3 {[%emt 0:00:24] Black mates.} 51. Rd7 {[%emt 0:00:06]} f2 {[%emt 0:01:10]} 52. Rf7 {[%emt 0:00:05]} Rc6+ {[%emt 0:00:06] Weighted Error Value: White=0.45/Black=0.04 (flawless)} 0-1

[Event "Swietokrzyskie IM Chess-ch 2022"]
[Site "Zagnansk"]
[Date "2022.05.04"]
[Round "7.2"]
[White "Manik, GM Mikulas"]
[Black "Chylewski, FM Patryk"]
[Result "1-0"]
[ECO "B90"]
[WhiteElo "2367"]
[BlackElo "2281"]
[Annotator "TA"]
[PlyCount "99"]
[EventDate "2022.04.29"]
[EventCountry "POL"]
[SourceTitle "playchess.com"]
[Source "ChessBase"]
[SourceQuality "1"]
[TimeControl "40/5400+30:1800+30"]

{[%evp 9,99,17,20,-10,-6,-14,0,0,0,-22,-23,-21,0,0,-8,0,-9,-14,0,-22,-16,-18,-18,-37,0,0,7,14,92,72,114,69,78,73,112,89,89,90,89,60,57,53,99,104,89,33,19,21,96,61,84,77,94,100,158,94,120,115,265,259,402,387,479,448,470,492,497,485,469,422,452,428,591,596,507,594,593,588,577,588,546,572,530,454,435,425,745,727,847,826,900,765]} 1. e4 {[%emt 0:00:03]} c5 {[%emt 0:00:09]} 2. Nf3 {[%emt 0:00:03]} d6 {[%emt 0:00:04]} 3. d4 {[%emt 0:00:02]} cxd4 {[%emt 0:00:05]} 4. Nxd4 {[%emt 0:00:03]} Nf6 {[%emt 0:00:06]} 5. Nc3 {[%emt 0:00:02]} a6 {[%emt 0:00:04]} 6. b3 {[%emt 0:00:01] B90: Sicilian Najdorf: Unusual White 6th moves, 6 Be3 Ng4 and 6 Be3 e5.} e5 {[%emt 0:06:02]} 7. Nde2 {[%emt 0:00:15]} Be7 {[%emt 0:04:52]} 8. g3 {[%emt 0:00:11] [#] The position is equal.} Nbd7 $146 {[%emt 0:02:59]} ({Predecessor:} 8... b5 9. Bg2 O-O 10. O-O b4 11. Nd5 Nxd5 12. exd5 a5 13. a3 bxa3 14. Rxa3 Bf5 {1-0 (26) Navara,D (2697)-Harsha,B (2509) Chess.com INT 2020}) 9. Bg2 {[%emt 0:00:12]} b5 {[%emt 0:01:12]} 10. O-O {[%emt 0:04:11]} Bb7 {[%emt 0:02:34]} 11. Nd5 {[%emt 0:06:42]} Nxd5 {[%emt 0:02:11]} 12. exd5 {[%emt 0:00:03]} O-O {[%emt 0:00:18]} 13. Be3 {[%emt 0:03:25]} Bg5 {[%emt 0:06:34]} 14. f4 {[%emt 0:01:40]} exf4 {[%emt 0:01:46]} 15. Nxf4 {[%emt 0:02:53]} Rc8 {[%emt 0:02:19]} 16. a4 {[%emt 0:01:38]} b4 {[%emt 0:01:13]} 17. a5 $1 {[%emt 0:01:51]} Bf6 {[%emt 0:09:30]} 18. Ra4 {[%emt 0:00:41]} Bc3 {[%emt 0:03:10] [#]} (18... Re8 $11 {remains equal.} 19. Bf2 (19. Rxb4 Rxe3 20. Rxb7 Rc7 $11) 19... Nc5 20. Rxb4 Qxa5) 19. Ne2 $1 $16 {[%emt 0:00:44] White is more active.} Re8 {[%emt 0:15:42]} 20. Bf2 {[%emt 0:00:15]} Qc7 {[%emt 0:03:54]} 21. Nxc3 {[%emt 0:04:43]} bxc3 {[%emt 0:07:37]} 22. Rh4 {[%emt 0:03:57]} Ne5 {[%emt 0:02:59]} 23. Bb6 {[%emt 0:09:02]} Qe7 {[%emt 0:00:43]} 24. Be4 {[%emt 0:02:14]} g6 {[%emt 0:06:27]} 25. Bg2 {[%emt 0:05:47]} Qg5 {[%emt 0:00:48]} (25... f5 $14 {was preferrable.}) 26. Rhf4 $36 {[%emt 0:01:32][%mdl 2048] White is on the roll.} (26. Re4 {keeps more tension.} Qd2 27. Rd4 Qg5 28. Rdf4) 26... f5 {[%emt 0:04:34]} 27. Bd4 {[%emt 0:01:46]} (27. Re1 $16) 27... Qd8 $14 {[%emt 0:00:57]} 28. Qa1 {[%emt 0:04:54]} Qc7 {[%emt 0:00:36]} (28... Qd7 $11 {keeps the balance.}) 29. Bb6 {[%emt 0:04:01] A strong pair of Bishops.} Qd7 {[%emt 0:00:38]} 30. h3 {[%emt 0:01:06] Against Ng4} Qb5 {[%emt 0:09:12]} 31. Qa4 {[%emt 0:00:06]} Qe2 {[%emt 0:00:26]} (31... Qxa4 $142 32. Rxa4 Nd7) 32. R1f2 {[%emt 0:04:35]} ({White should try} 32. R4f2 Qb5 33. Qxb5 axb5 34. g4) 32... Qe1+ {[%emt 0:03:52]} 33. Kh2 {[%emt 0:00:02]} Nd3 {[%emt 0:01:16] A mistake that costs the game.} 34. Rf1 $18 {[%emt 0:00:20]} ({Stronger than} 34. cxd3 c2 35. Rf1 {[#]} c1=Q $1 $17) 34... Qd2 {[%emt 0:01:40]} (34... Qe2 {might work better.} 35. cxd3 c2) 35. cxd3 {[%emt 0:02:35]} c2 {[%emt 0:00:37]} 36. Qd7 {[%emt 0:00:48][%csl LRb7,LRd6] Threatens to win with Bd4. White is clearly winning.} Bxd5 {[%emt 0:00:37][%csl Gd5][%cal Rd2g2]} 37. R4f2 {[%emt 0:00:08]} Qxd3 {[%emt 0:00:34] Strongly threatening ...Bxg2.} 38. Qxd6 {[%emt 0:03:05]} Be4 {[%emt 0:00:34]} 39. Qxd3 {[%emt 0:00:44]} Bxd3 {[%emt 0:00:05]} 40. Rc1 {[%emt 0:00:00]} Kf8 {[%emt 0:00:00]} 41. Rd2 {[%emt 0:16:54]} Rc3 {[%emt 0:16:22]} 42. b4 {[%emt 0:00:39]} Re2 {[%emt 0:00:32]} 43. Rxe2 {[%emt 0:02:54]} Bxe2 {[%emt 0:00:05]} 44. Bd4 {[%emt 0:00:33]} Rc4 {[%emt 0:00:45]} 45. Bc5+ {[%emt 0:00:11]} Ke8 {[%emt 0:00:16]} 46. Kg1 {[%emt 0:00:38]} Rc3 {[%emt 0:00:40]} 47. Kf2 {[%emt 0:01:54]} Bd1 {[%emt 0:00:24]} (47... Bd3 $142 48. g4 Kd7 49. gxf5 gxf5) 48. Bb7 {[%emt 0:00:55]} Rb3 {[%emt 0:00:26]} 49. Bxa6 {[%emt 0:01:42]} Rb1 {[%emt 0:00:07]} 50. Be3 {[%emt 0:00:07] Weighted Error Value: White=0.10 (very precise) /Black=0.31} 1-0

[Event "Swietokrzyskie IM Chess-ch 2022"]
[Site "Zagnansk"]
[Date "2022.05.04"]
[Round "7.3"]
[White "Vlachos, IM Anatole"]
[Black "Kotyk, Michael"]
[Result "1-0"]
[ECO "C88"]
[WhiteElo "2406"]
[BlackElo "2170"]
[Annotator "TA"]
[PlyCount "77"]
[EventDate "2022.04.29"]
[EventCountry "POL"]
[SourceTitle "playchess.com"]
[Source "ChessBase"]
[SourceQuality "1"]
[TimeControl "40/5400+30:1800+30"]

{[%evp 16,77,33,14,79,36,30,25,54,63,62,54,88,85,85,88,91,79,82,74,97,100,100,100,198,187,185,170,158,158,158,171,215,213,255,219,385,380,385,368,544,515,641,654,658,404,622,591,750,690,1118,1092,12840,12841,12841,12841,12841,12842,12842,12842,12843,12843,12843,12842]} 1. e4 {[%emt 0:00:08]} e5 {[%emt 0:00:06]} 2. Nf3 {[%emt 0:00:04]} Nc6 {[%emt 0:00:04]} 3. Bb5 {[%emt 0:00:05]} a6 {[%emt 0:00:04]} 4. Ba4 {[%emt 0:00:06]} Nf6 {[%emt 0:00:04]} 5. O-O {[%emt 0:00:05]} Be7 {[%emt 0:00:04]} 6. Re1 {[%emt 0:00:05]} b5 {[%emt 0:00:04]} 7. Bb3 {[%emt 0:00:04]} O-O {[%emt 0:00:04]} 8. d3 {[%emt 0:03:55]} Bb7 {[%emt 0:00:08]} 9. Nc3 {[%emt 0:10:41][%cal Bb1c3,Bc3e2,Be2d4,Bd4f5][%mdl 32]} Nd4 {[%emt 0:00:06] [#] C88: Closed Ruy Lopez: Anti-Marshall Systems.} (9... d6 $11 {keeps the balance.}) 10. Nxd4 $146 {[%emt 0:02:10]} ({Predecessor:} 10. Nxe5 Nxb3 11. axb3 b4 12. Ne2 d5 13. Ng3 dxe4 14. dxe4 Qxd1 15. Rxd1 Nxe4 16. Nxe4 Bxe4 17. c3 {½-½ (40) Huaracc Yarasca,D (1112)-Atiencia,J Guayaquil 2019}) 10... exd4 {[%emt 0:00:05]} 11. Ne2 {[%emt 0:00:45]} d5 {[%emt 0:01:29] White has an edge.} 12. exd5 {[%emt 0:13:43]} Nxd5 {[%emt 0:00:07]} 13. Nxd4 {[%emt 0:02:35]} c5 {[%emt 0:00:05]} 14. Nf5 {[%emt 0:03:40]} Bf6 {[%emt 0:05:39]} 15. Qg4 {[%emt 0:02:59]} Kh8 {[%emt 0:02:45]} 16. Qg3 {[%emt 0:10:11] White is more active.} Qd7 {[%emt 0:07:26]} 17. Nd6 {[%emt 0:00:52]} Rad8 {[%emt 0:06:19]} 18. Nxb7 {[%emt 0:00:57]} Qxb7 {[%emt 0:00:07]} 19. Bg5 {[%emt 0:07:43]} c4 {[%emt 0:10:58]} (19... Qc6 $16) 20. dxc4 $40 {[%emt 0:00:30][%mdl 128] White is out for blood.} bxc4 {[%emt 0:02:39]} 21. Bxf6 {[%emt 0:00:16]} Nxf6 {[%emt 0:06:30]} 22. Bxc4 {[%emt 0:00:02][%cal Bb3c4,Bc4a6,Ba6e2,Be2d3][%mdl 32]} Qxb2 {[%emt 0:00:11]} 23. Qb3 {[%emt 0:00:51]} Qd4 {[%emt 0:02:26]} 24. Bxa6 {[%emt 0:00:27]} Ng4 {[%emt 0:01:45]} 25. Qg3 {[%emt 0:03:17]} Rd6 $2 {[%emt 0:10:40]} (25... Qa4 26. Bd3 Nf6) 26. Be2 {[%emt 0:00:38] [#] aiming for Rad1.} Rg6 {[%emt 0:00:05]} 27. Rad1 {[%emt 0:01:30]} Qa4 {[%emt 0:00:20]} (27... Qe5 {might work better.} 28. a4 (28. Bxg4 Qxg3 29. hxg3 Rxg4 $16) 28... Kg8 29. Qxe5 Nxe5) 28. Bd3 {[%emt 0:03:29]} f5 {[%emt 0:11:06] [#]} 29. Bxf5 $1 {[%emt 0:00:41][%mdl 512]} Rg5 {[%emt 0:00:06]} (29... Nxf2 30. Qxf2) 30. Be4 {[%emt 0:09:22]} Qa7 {[%emt 0:13:43]} (30... Re8 $142 31. h3 Rge5 32. Qxg4 h5) 31. Bf3 {[%emt 0:00:57] White is clearly winning.} h5 {[%emt 0:04:49]} 32. h3 {[%emt 0:00:21]} Rxf3 {[%emt 0:01:33]} 33. Qxf3 {[%emt 0:01:22] Re8+ would kill now.} Ne5 {[%emt 0:00:16]} 34. Qf4 {[%emt 0:02:30]} Nf7 35. Re8+ {[%emt 0:00:35]} Kh7 {[%emt 0:01:44]} 36. Qe4+ {[%emt 0:00:08]} Kh6 {[%emt 0:00:39]} 37. Re7 {[%emt 0:02:15]} Qxa2 {[%emt 0:00:56]} 38. Qf4 {[%emt 0:00:11] Threatening mate with h4.} Qa8 {[%emt 0:01:12]} 39. g3 {[%emt 0:00:27] Weighted Error Value: White=0.15 (very precise) /Black=0.61} 1-0